[Event "Early-Titled-Tuesday-Blitz-October-24-2023"]
[Site "Chess.com"]
[Date "2023.10.24"]
[Round "8"]
[White "Legendinunknown"]
[Black "Grischuk"]
[Result "0-1"]
[WhiteElo "2813"]
[BlackElo "3000"]
[TimeControl "180+1"]
[EndTime "9:25:10 PDT"]
[Termination "Grischuk won by resignation"]

1. d4 {[%clk 0:03:00.9]} 1... e6 {[%clk 0:02:59.9]} 2. c4 {[%clk 0:03:01]} 2...
b6 {[%clk 0:03:00.2]} 3. a3 {[%clk 0:03:00.7]} 3... Bb7 {[%clk 0:02:59.6]} 4.
Nc3 {[%clk 0:03:00.7]} 4... f5 {[%clk 0:02:59.3]} 5. Nf3 {[%clk 0:02:59.7]} 5...
Nf6 {[%clk 0:02:58.9]} 6. g3 {[%clk 0:03:00.2]} 6... Ne4 {[%clk 0:02:55]} 7. Bg2
{[%clk 0:02:59.8]} 7... Nxc3 {[%clk 0:02:54.4]} 8. bxc3 {[%clk 0:02:59.7]} 8...
Be4 {[%clk 0:02:51.5]} 9. O-O {[%clk 0:02:59.2]} 9... Be7 {[%clk 0:02:51.2]} 10.
Nd2 {[%clk 0:02:56.7]} 10... Bxg2 {[%clk 0:02:50.8]} 11. Kxg2 {[%clk 0:02:57.6]}
11... O-O {[%clk 0:02:50.4]} 12. e4 {[%clk 0:02:57.3]} 12... fxe4 {[%clk
0:02:46.8]} 13. Nxe4 {[%clk 0:02:58.2]} 13... Nc6 {[%clk 0:02:46.4]} 14. Qe2
{[%clk 0:02:57.5]} 14... Qe8 {[%clk 0:02:38.9]} 15. Bf4 {[%clk 0:02:54.6]} 15...
Rc8 {[%clk 0:02:36.5]} 16. d5 {[%clk 0:02:48.6]} 16... Na5 {[%clk 0:02:33.7]}
17. dxe6 {[%clk 0:02:47.2]} 17... dxe6 {[%clk 0:02:29.8]} 18. Nd2 {[%clk
0:02:41.6]} 18... Qc6+ {[%clk 0:02:27.3]} 19. Kg1 {[%clk 0:02:39.5]} 19... Bf6
{[%clk 0:02:26.9]} 20. Rac1 {[%clk 0:02:37.6]} 20... Rcd8 {[%clk 0:02:20.4]} 21.
Rfe1 {[%clk 0:02:36.5]} 21... Rfe8 {[%clk 0:02:04.4]} 22. h4 {[%clk 0:02:35.6]}
22... h6 {[%clk 0:02:03.5]} 23. h5 {[%clk 0:02:34.5]} 23... e5 {[%clk 0:01:51]}
24. Be3 {[%clk 0:02:34]} 24... e4 {[%clk 0:01:49.1]} 25. c5 {[%clk 0:02:33.9]}
25... Rd3 {[%clk 0:01:38.6]} 26. Qg4 {[%clk 0:02:29.4]} 26... Qe6 {[%clk
0:01:17.2]} 27. Qxe6+ {[%clk 0:02:04.5]} 27... Rxe6 {[%clk 0:01:18.1]} 28. Bf4
{[%clk 0:01:57.8]} 28... Bxc3 {[%clk 0:01:12]} 29. Re2 {[%clk 0:01:39.5]} 29...
Bxd2 {[%clk 0:01:10.7]} 30. Bxd2 {[%clk 0:01:35.8]} 30... Nb3 {[%clk 0:01:08.5]}
31. Rc2 {[%clk 0:01:33.4]} 31... Nd4 {[%clk 0:01:04.3]} 32. Be3 {[%clk
0:01:32.8]} 32... Nxe2+ {[%clk 0:01:01.9]} 33. Rxe2 {[%clk 0:01:33.7]} 33...
Rxa3 {[%clk 0:01:02.2]} 34. cxb6 {[%clk 0:01:32.8]} 34... axb6 {[%clk
0:01:00.7]} 35. Rd2 {[%clk 0:01:33.2]} 35... Rd3 {[%clk 0:00:55.8]} 36. Ra2
{[%clk 0:01:33.1]} 36... Rd5 {[%clk 0:00:44.1]} 37. Ra7 {[%clk 0:01:28.1]} 37...
c5 {[%clk 0:00:43.1]} 38. g4 {[%clk 0:01:26.8]} 38... Rc6 {[%clk 0:00:39.5]} 39.
Re7 {[%clk 0:01:09.5]} 39... c4 {[%clk 0:00:37.2]} 40. Rxe4 {[%clk 0:01:10]}
40... c3 {[%clk 0:00:33.9]} 41. Kg2 {[%clk 0:01:10.6]} 41... c2 {[%clk
0:00:32.3]} 42. Re8+ {[%clk 0:01:10.6]} 42... Kf7 {[%clk 0:00:31.4]} 43. Rb8
{[%clk 0:01:11.5]} 43... c1=Q {[%clk 0:00:30.1]} 44. Bxc1 {[%clk 0:01:11.3]}
44... Rxc1 {[%clk 0:00:30.2]} 45. Rxb6 {[%clk 0:01:11.9]} 45... Rc7 {[%clk
0:00:29.3]} 46. f3 {[%clk 0:01:11.1]} 46... Rdc5 {[%clk 0:00:29.1]} 47. Kg3
{[%clk 0:01:10.8]} 47... Kg8 {[%clk 0:00:28.8]} 48. Rb8+ {[%clk 0:01:10.4]}
48... Kh7 {[%clk 0:00:29]} 49. Rf8 {[%clk 0:01:09.3]} 49... Rc3 {[%clk
0:00:28.5]} 50. Kh4 {[%clk 0:01:03.1]} 50... Rc8 {[%clk 0:00:25.6]} 51. Rf4
{[%clk 0:01:01.4]} 51... R8c6 {[%clk 0:00:24.7]} 52. Rf5 {[%clk 0:00:54.4]}
52... Rf6 {[%clk 0:00:23.8]} 53. Rxf6 {[%clk 0:00:54.5]} 53... gxf6 {[%clk
0:00:24.7]} 54. f4 {[%clk 0:00:54.8]} 54... Rc4 {[%clk 0:00:24.1]} 55. f5 {[%clk
0:00:54.7]} 55... Kg7 {[%clk 0:00:24.1]} 56. Kg3 {[%clk 0:00:55.6]} 56... Kf7
{[%clk 0:00:24.6]} 57. Kf3 {[%clk 0:00:56.1]} 57... Ke7 {[%clk 0:00:25.1]} 0-1

[Event "Early-Titled-Tuesday-Blitz-October-24-2023"]
[Site "Chess.com"]
[Date "2023.10.24"]
[Round "8"]
[White "ketster"]
[Black "GM_DarwinLaylo"]
[Result "0-1"]
[WhiteElo "2516"]
[BlackElo "2639"]
[TimeControl "180+1"]
[EndTime "9:25:12 PDT"]
[Termination "GM_DarwinLaylo won by resignation"]

1. d4 {[%clk 0:02:57.4]} 1... d5 {[%clk 0:02:56.8]} 2. c4 {[%clk 0:02:56.7]}
2... c6 {[%clk 0:02:57]} 3. cxd5 {[%clk 0:02:56.5]} 3... cxd5 {[%clk 0:02:57.1]}
4. Bf4 {[%clk 0:02:56.9]} 4... Nc6 {[%clk 0:02:51.6]} 5. e3 {[%clk 0:02:56.4]}
5... Nf6 {[%clk 0:02:47.2]} 6. Nc3 {[%clk 0:02:53.5]} 6... e6 {[%clk 0:02:46.4]}
7. Bd3 {[%clk 0:02:50.1]} 7... Bd6 {[%clk 0:02:45.9]} 8. Bxd6 {[%clk 0:02:49.9]}
8... Qxd6 {[%clk 0:02:46]} 9. f4 {[%clk 0:02:50.8]} 9... a6 {[%clk 0:02:44.7]}
10. Nf3 {[%clk 0:02:50.4]} 10... b5 {[%clk 0:02:44.4]} 11. Rc1 {[%clk
0:02:47.8]} 11... Bb7 {[%clk 0:02:44.5]} 12. O-O {[%clk 0:02:47.8]} 12... O-O
{[%clk 0:02:37.4]} 13. Ne5 {[%clk 0:02:43.5]} 13... Rac8 {[%clk 0:02:31.2]} 14.
Qe2 {[%clk 0:02:30.4]} 14... Ne7 {[%clk 0:02:27.5]} 15. g4 {[%clk 0:02:14.1]}
15... Ne4 {[%clk 0:02:20.7]} 16. Bxe4 {[%clk 0:01:26]} 16... dxe4 {[%clk
0:02:19.2]} 17. g5 {[%clk 0:01:25.4]} 17... Nf5 {[%clk 0:02:11]} 18. Ng4 {[%clk
0:01:14.5]} 18... Bd5 {[%clk 0:01:57.9]} 19. Qg2 {[%clk 0:00:58]} 19... Qc6
{[%clk 0:01:49.5]} 20. Kf2 {[%clk 0:00:49.7]} 20... b4 {[%clk 0:01:44]} 21. Ne2
{[%clk 0:00:48.9]} 21... Qa4 {[%clk 0:01:39.7]} 22. h4 {[%clk 0:00:11.3]} 22...
Rc2 {[%clk 0:01:25.9]} 23. Rxc2 {[%clk 0:00:05.2]} 23... Qxc2 {[%clk 0:01:25.3]}
24. h5 {[%clk 0:00:03.4]} 24... Bc4 {[%clk 0:01:21.2]} 25. Re1 {[%clk
0:00:03.5]} 25... Kh8 {[%clk 0:01:16.5]} 26. h6 {[%clk 0:00:03]} 26... gxh6
{[%clk 0:01:11.6]} 27. Nf6 {[%clk 0:00:02.8]} 27... Qd2 {[%clk 0:01:07]} 28.
Qxe4 {[%clk 0:00:02.6]} 28... Bxe2 {[%clk 0:01:02.6]} 29. Rxe2 {[%clk
0:00:02.7]} 29... Qxe2+ {[%clk 0:01:02.7]} 30. Kxe2 {[%clk 0:00:02.5]} 30...
Ng3+ {[%clk 0:01:03.3]} 31. Kd3 {[%clk 0:00:02.7]} 31... Nxe4 {[%clk 0:01:03.9]}
32. Nxe4 {[%clk 0:00:03.6]} 32... hxg5 {[%clk 0:01:04.1]} 33. fxg5 {[%clk
0:00:04.2]} 33... Kg7 {[%clk 0:01:03.8]} 34. Nc5 {[%clk 0:00:03.3]} 34... a5
{[%clk 0:01:03.9]} 35. Nb7 {[%clk 0:00:03.1]} 35... Ra8 {[%clk 0:01:04]} 36. e4
{[%clk 0:00:02.7]} 36... Kg6 {[%clk 0:01:04.3]} 37. Nd6 {[%clk 0:00:02]} 37...
Ra6 {[%clk 0:01:01.2]} 38. Nc4 {[%clk 0:00:01.8]} 38... Kxg5 {[%clk 0:01:00.8]}
39. d5 {[%clk 0:00:02.6]} 39... exd5 {[%clk 0:01:00.3]} 40. exd5 {[%clk
0:00:03.5]} 40... h5 {[%clk 0:01:00.1]} 41. d6 {[%clk 0:00:03]} 41... Kf6 {[%clk
0:01:00.1]} 42. Ke4 {[%clk 0:00:02.7]} 42... Ke6 {[%clk 0:00:58.7]} 43. Kf4
{[%clk 0:00:02.1]} 43... Rxd6 {[%clk 0:00:55.4]} 44. Nxd6 {[%clk 0:00:02]} 44...
Kxd6 {[%clk 0:00:56.3]} 45. Kg5 {[%clk 0:00:02.9]} 45... Ke5 {[%clk 0:00:56.3]}
46. Kxh5 {[%clk 0:00:03.1]} 46... f5 {[%clk 0:00:56.1]} 0-1

[Event "Early-Titled-Tuesday-Blitz-October-24-2023"]
[Site "Chess.com"]
[Date "2023.10.24"]
[Round "8"]
[White "UmarovSabir"]
[Black "fen_fire"]
[Result "0-1"]
[WhiteElo "2331"]
[BlackElo "2544"]
[TimeControl "180+1"]
[EndTime "9:25:14 PDT"]
[Termination "fen_fire won on time"]

1. e4 {[%clk 0:03:00.3]} 1... Nc6 {[%clk 0:02:24.5]} 2. d4 {[%clk 0:02:57.4]}
2... e5 {[%clk 0:02:24.7]} 3. d5 {[%clk 0:02:57.4]} 3... Nce7 {[%clk 0:02:24.7]}
4. Nc3 {[%clk 0:02:53.9]} 4... Nf6 {[%clk 0:02:23.5]} 5. Be3 {[%clk 0:02:52.9]}
5... Ng6 {[%clk 0:02:23.5]} 6. g3 {[%clk 0:02:45.5]} 6... Bb4 {[%clk 0:02:23.1]}
7. Bg2 {[%clk 0:02:45.7]} 7... Bxc3+ {[%clk 0:02:21]} 8. bxc3 {[%clk 0:02:45.6]}
8... d6 {[%clk 0:02:21.6]} 9. Ne2 {[%clk 0:02:45]} 9... O-O {[%clk 0:02:20.3]}
10. O-O {[%clk 0:02:43.8]} 10... Re8 {[%clk 0:02:16.2]} 11. a4 {[%clk
0:02:41.9]} 11... a5 {[%clk 0:02:16]} 12. c4 {[%clk 0:02:37.8]} 12... b6 {[%clk
0:02:16.1]} 13. Nc3 {[%clk 0:02:38.1]} 13... Rf8 {[%clk 0:02:01.4]} 14. Nb5
{[%clk 0:02:36]} 14... h6 {[%clk 0:02:01.2]} 15. h3 {[%clk 0:02:26.4]} 15... Nh7
{[%clk 0:02:00.3]} 16. f4 {[%clk 0:02:25.6]} 16... f5 {[%clk 0:01:56.3]} 17.
exf5 {[%clk 0:02:13.7]} 17... Bxf5 {[%clk 0:01:57.2]} 18. g4 {[%clk 0:02:13.8]}
18... Bd7 {[%clk 0:01:47.4]} 19. Be4 {[%clk 0:02:08.5]} 19... Nxf4 {[%clk
0:01:42.4]} 20. Bxf4 {[%clk 0:02:07.6]} 20... exf4 {[%clk 0:01:42.5]} 21. Nd4
{[%clk 0:01:58.4]} 21... Ng5 {[%clk 0:01:38.7]} 22. Qd3 {[%clk 0:01:49.6]} 22...
Qf6 {[%clk 0:01:31.8]} 23. Bf5 {[%clk 0:01:38.1]} 23... Nxh3+ {[%clk 0:01:30.2]}
24. Kg2 {[%clk 0:01:28.9]} 24... Bxf5 {[%clk 0:01:26.6]} 25. gxf5 {[%clk
0:01:21.9]} 25... Ng5 {[%clk 0:01:22.9]} 26. Rxf4 {[%clk 0:01:21.3]} 26... Rae8
{[%clk 0:01:15.6]} 27. Raf1 {[%clk 0:01:15.8]} 27... Re5 {[%clk 0:01:15.4]} 28.
Ne6 {[%clk 0:01:14.2]} 28... Rf7 {[%clk 0:01:11.7]} 29. Qg3 {[%clk 0:00:53.4]}
29... Re2+ {[%clk 0:01:07.4]} 30. Kh1 {[%clk 0:00:21.1]} 30... Rxc2 {[%clk
0:00:59.4]} 31. Rg4 {[%clk 0:00:16.5]} 31... Rc3 {[%clk 0:00:53]} 32. Qg2 {[%clk
0:00:13.8]} 32... Re7 {[%clk 0:00:26.2]} 33. Rg1 {[%clk 0:00:03]} 33... Rh3+
{[%clk 0:00:20.4]} 34. Qxh3 {[%clk 0:00:01.7]} 34... Nxh3 {[%clk 0:00:21.3]} 0-1

[Event "Early-Titled-Tuesday-Blitz-October-24-2023"]
[Site "Chess.com"]
[Date "2023.10.24"]
[Round "8"]
[White "EvgenyBurmakin"]
[Black "Vesper2018"]
[Result "0-1"]
[WhiteElo "2357"]
[BlackElo "2591"]
[TimeControl "180+1"]
[EndTime "9:25:16 PDT"]
[Termination "Vesper2018 won on time"]

1. e4 {[%clk 0:03:00.9]} 1... c5 {[%clk 0:02:59.6]} 2. Nc3 {[%clk 0:03:00.6]}
2... d6 {[%clk 0:02:59]} 3. Nf3 {[%clk 0:02:59.9]} 3... a6 {[%clk 0:02:58.2]} 4.
d4 {[%clk 0:03:00.3]} 4... cxd4 {[%clk 0:02:58.3]} 5. Nxd4 {[%clk 0:03:01.2]}
5... Nf6 {[%clk 0:02:58.2]} 6. Be3 {[%clk 0:02:59.9]} 6... e5 {[%clk 0:02:57.9]}
7. Nb3 {[%clk 0:03:00.1]} 7... Be6 {[%clk 0:02:57.1]} 8. f3 {[%clk 0:03:00]}
8... Nbd7 {[%clk 0:02:57.4]} 9. Qd2 {[%clk 0:02:59.7]} 9... b5 {[%clk
0:02:57.8]} 10. O-O-O {[%clk 0:02:57.3]} 10... Be7 {[%clk 0:02:56.4]} 11. g4
{[%clk 0:02:55]} 11... O-O {[%clk 0:02:56.5]} 12. g5 {[%clk 0:02:55]} 12... Nh5
{[%clk 0:02:56.6]} 13. Rg1 {[%clk 0:02:42.6]} 13... b4 {[%clk 0:02:51.4]} 14.
Nd5 {[%clk 0:02:42.5]} 14... Bxd5 {[%clk 0:02:51.3]} 15. Qxd5 {[%clk 0:02:38.2]}
15... a5 {[%clk 0:02:36.7]} 16. Kb1 {[%clk 0:02:31.2]} 16... a4 {[%clk
0:02:31.5]} 17. Nd2 {[%clk 0:02:25.3]} 17... Nb6 {[%clk 0:02:22.4]} 18. Qc6
{[%clk 0:02:22.1]} 18... Rb8 {[%clk 0:02:20.1]} 19. Nc4 {[%clk 0:02:16.2]} 19...
Nxc4 {[%clk 0:02:13]} 20. Bxc4 {[%clk 0:02:17.1]} 20... a3 {[%clk 0:02:09.8]}
21. b3 {[%clk 0:02:14.9]} 21... g6 {[%clk 0:02:09.6]} 22. h4 {[%clk 0:01:59.2]}
22... Kh8 {[%clk 0:02:06.1]} 23. Rd2 {[%clk 0:01:48.4]} 23... f6 {[%clk
0:02:00.3]} 24. gxf6 {[%clk 0:01:40.5]} 24... Rxf6 {[%clk 0:01:59.8]} 25. Rf1
{[%clk 0:01:01.4]} 25... Nf4 {[%clk 0:01:28]} 26. Rh2 {[%clk 0:00:24.8]} 26...
Ne6 {[%clk 0:01:19.1]} 27. h5 {[%clk 0:00:22.5]} 27... g5 {[%clk 0:01:14.4]} 28.
h6 {[%clk 0:00:22.5]} 28... Nd4 {[%clk 0:01:03.3]} 29. Bxd4 {[%clk 0:00:18.6]}
29... exd4 {[%clk 0:01:03.6]} 30. Qd5 {[%clk 0:00:18.8]} 30... Rf4 {[%clk
0:00:58.1]} 31. Qxd4+ {[%clk 0:00:12]} 31... Bf6 {[%clk 0:00:58]} 32. Qd5 {[%clk
0:00:12.1]} 32... Be5 {[%clk 0:00:50.6]} 33. Rg2 {[%clk 0:00:10.4]} 33... Qf6
{[%clk 0:00:49.2]} 34. Qd3 {[%clk 0:00:07.1]} 34... Ba1 {[%clk 0:00:47.1]} 35.
c3 {[%clk 0:00:07.1]} 35... Bxc3 {[%clk 0:00:46.7]} 36. Rd1 {[%clk 0:00:03.4]}
36... Be5 {[%clk 0:00:45.7]} 37. Bd5 {[%clk 0:00:02.6]} 37... Rxf3 {[%clk
0:00:45.2]} 38. Qc4 {[%clk 0:00:02.3]} 38... Rc3 {[%clk 0:00:44]} 39. Qa6 {[%clk
0:00:01.5]} 39... Rbc8 {[%clk 0:00:35.4]} 40. Qa7 {[%clk 0:00:01.3]} 40... R3c7
{[%clk 0:00:33.9]} 41. Qb6 {[%clk 0:00:01.3]} 41... Qf3 {[%clk 0:00:29.4]} 0-1

[Event "Early-Titled-Tuesday-Blitz-October-24-2023"]
[Site "Chess.com"]
[Date "2023.10.24"]
[Round "8"]
[White "C_K_G"]
[Black "MarijaKuznecova"]
[Result "0-1"]
[WhiteElo "1886"]
[BlackElo "2386"]
[TimeControl "180+1"]
[EndTime "9:25:18 PDT"]
[Termination "MarijaKuznecova won on time"]

1. e4 {[%clk 0:03:00.9]} 1... c5 {[%clk 0:02:54.9]} 2. Nf3 {[%clk 0:03:00.2]}
2... d6 {[%clk 0:02:54.6]} 3. d4 {[%clk 0:02:59.8]} 3... cxd4 {[%clk 0:02:55.5]}
4. Nxd4 {[%clk 0:03:00.1]} 4... Nf6 {[%clk 0:02:55.4]} 5. Nc3 {[%clk 0:03:00.3]}
5... a6 {[%clk 0:02:54.3]} 6. Be2 {[%clk 0:03:00.1]} 6... e5 {[%clk 0:02:54.8]}
7. Nb3 {[%clk 0:02:59.7]} 7... Be7 {[%clk 0:02:55.1]} 8. Be3 {[%clk 0:02:59.9]}
8... Be6 {[%clk 0:02:55.7]} 9. O-O {[%clk 0:02:59.2]} 9... O-O {[%clk
0:02:55.9]} 10. f4 {[%clk 0:02:59.2]} 10... exf4 {[%clk 0:02:56]} 11. Rxf4
{[%clk 0:02:58.8]} 11... b5 {[%clk 0:02:53.5]} 12. Rf1 {[%clk 0:02:44]} 12...
Nc6 {[%clk 0:02:49.7]} 13. Nd5 {[%clk 0:02:42.7]} 13... Ne5 {[%clk 0:02:47.1]}
14. Bb6 {[%clk 0:02:32.4]} 14... Qd7 {[%clk 0:02:44.6]} 15. Nxe7+ {[%clk
0:02:06.6]} 15... Qxe7 {[%clk 0:02:45.5]} 16. Qd4 {[%clk 0:01:58]} 16... Nc4
{[%clk 0:02:40.3]} 17. Rad1 {[%clk 0:01:43.5]} 17... Qb7 {[%clk 0:02:30.7]} 18.
Bxc4 {[%clk 0:01:36.3]} 18... bxc4 {[%clk 0:02:25.9]} 19. Nd2 {[%clk 0:01:23.2]}
19... Rfb8 {[%clk 0:02:24]} 20. Ba5 {[%clk 0:01:21.7]} 20... Qxb2 {[%clk
0:02:06.8]} 21. Qxd6 {[%clk 0:01:07.7]} 21... Qxc2 {[%clk 0:01:49.2]} 22. Qe5
{[%clk 0:00:58.6]} 22... Rb5 {[%clk 0:01:43.9]} 23. Qc3 {[%clk 0:00:58.5]} 23...
Qxa2 {[%clk 0:01:40.5]} 24. Bc7 {[%clk 0:00:51.8]} 24... Qb2 {[%clk 0:01:35.1]}
25. Qf3 {[%clk 0:00:39.3]} 25... c3 {[%clk 0:01:09.4]} 26. e5 {[%clk 0:00:36]}
26... Nd5 {[%clk 0:01:02.3]} 27. Nc4 {[%clk 0:00:33.2]} 27... Qb4 {[%clk
0:00:57.9]} 28. Nd6 {[%clk 0:00:27.5]} 28... Nxc7 {[%clk 0:00:48.5]} 29. Nxb5
{[%clk 0:00:26.1]} 29... axb5 {[%clk 0:00:48.4]} 30. Qxa8+ {[%clk 0:00:24.9]}
30... Nxa8 {[%clk 0:00:49.1]} 31. Rd8+ {[%clk 0:00:24.3]} 31... Qf8 {[%clk
0:00:50]} 32. Rxf8+ {[%clk 0:00:23]} 32... Kxf8 {[%clk 0:00:50.9]} 33. Ra1
{[%clk 0:00:21.6]} 33... Bd5 {[%clk 0:00:49.9]} 34. Kf2 {[%clk 0:00:20.1]} 34...
b4 {[%clk 0:00:49.7]} 35. Ke3 {[%clk 0:00:19.9]} 35... Nb6 {[%clk 0:00:41.5]}
36. Kd4 {[%clk 0:00:19.1]} 36... Be6 {[%clk 0:00:39.1]} 37. Kc5 {[%clk
0:00:17.9]} 37... b3 {[%clk 0:00:32]} 38. Kxb6 {[%clk 0:00:12.4]} 38... b2
{[%clk 0:00:32]} 39. Ra8+ {[%clk 0:00:11.3]} 39... Ke7 {[%clk 0:00:32.5]} 40.
Ra7+ {[%clk 0:00:10.8]} 40... Bd7 {[%clk 0:00:33.1]} 41. Kc5 {[%clk 0:00:01.6]}
41... b1=Q {[%clk 0:00:32.7]} 0-1

[Event "Early-Titled-Tuesday-Blitz-October-24-2023"]
[Site "Chess.com"]
[Date "2023.10.24"]
[Round "8"]
[White "santosalberto1987"]
[Black "sergeikim"]
[Result "0-1"]
[WhiteElo "2427"]
[BlackElo "2601"]
[TimeControl "180+1"]
[EndTime "9:25:19 PDT"]
[Termination "sergeikim won by resignation"]

1. e4 {[%clk 0:03:00.9]} 1... e5 {[%clk 0:02:59.7]} 2. Nf3 {[%clk 0:03:01]} 2...
Nc6 {[%clk 0:02:59.6]} 3. Bc4 {[%clk 0:03:01.1]} 3... Bc5 {[%clk 0:02:58.8]} 4.
c3 {[%clk 0:03:01]} 4... Nf6 {[%clk 0:02:59]} 5. d3 {[%clk 0:03:01.3]} 5... d6
{[%clk 0:02:59]} 6. Nbd2 {[%clk 0:03:00.2]} 6... a6 {[%clk 0:02:59.2]} 7. O-O
{[%clk 0:02:58.2]} 7... Ba7 {[%clk 0:02:58.7]} 8. Bb3 {[%clk 0:02:58.1]} 8...
O-O {[%clk 0:02:58.6]} 9. h3 {[%clk 0:02:58]} 9... Nh5 {[%clk 0:02:58.5]} 10.
Re1 {[%clk 0:02:56.7]} 10... Qf6 {[%clk 0:02:57.8]} 11. Nf1 {[%clk 0:02:54.5]}
11... Nf4 {[%clk 0:02:57.2]} 12. Bxf4 {[%clk 0:02:53.1]} 12... Qxf4 {[%clk
0:02:56.5]} 13. Qd2 {[%clk 0:02:45.8]} 13... Qxd2 {[%clk 0:02:48.9]} 14. N3xd2
{[%clk 0:02:41.3]} 14... Be6 {[%clk 0:02:46.9]} 15. Ne3 {[%clk 0:02:39.4]} 15...
Ne7 {[%clk 0:02:45.3]} 16. Kh1 {[%clk 0:02:25.7]} 16... Ng6 {[%clk 0:02:43.6]}
17. Kh2 {[%clk 0:02:21.4]} 17... c6 {[%clk 0:02:43]} 18. g3 {[%clk 0:02:20.2]}
18... Rad8 {[%clk 0:02:34.4]} 19. Kg2 {[%clk 0:02:19.8]} 19... d5 {[%clk
0:02:25.6]} 20. Rad1 {[%clk 0:02:13.5]} 20... f5 {[%clk 0:02:16.7]} 21. exf5
{[%clk 0:02:10]} 21... Bxf5 {[%clk 0:02:16.7]} 22. Nxf5 {[%clk 0:02:09.8]} 22...
Rxf5 {[%clk 0:02:16.2]} 23. Re2 {[%clk 0:02:09.4]} 23... Rdf8 {[%clk 0:02:14.8]}
24. Rf1 {[%clk 0:02:09]} 24... h5 {[%clk 0:02:02.6]} 25. h4 {[%clk 0:02:04.3]}
25... Kh7 {[%clk 0:01:55.6]} 26. c4 {[%clk 0:02:03.9]} 26... Ne7 {[%clk
0:01:47.6]} 27. cxd5 {[%clk 0:02:03.3]} 27... cxd5 {[%clk 0:01:47.2]} 28. Bc2
{[%clk 0:01:59.1]} 28... g6 {[%clk 0:01:36.6]} 29. f4 {[%clk 0:01:45]} 29... Nc6
{[%clk 0:01:25.7]} 30. Nf3 {[%clk 0:01:04.1]} 30... Nd4 {[%clk 0:01:01.1]} 31.
Nxd4 {[%clk 0:01:00.1]} 31... Bxd4 {[%clk 0:01:00.9]} 32. Bb3 {[%clk 0:00:59.4]}
32... exf4 {[%clk 0:00:56.6]} 33. Rxf4 {[%clk 0:00:56.8]} 33... Rxf4 {[%clk
0:00:54.1]} 34. gxf4 {[%clk 0:00:57.7]} 34... Rxf4 {[%clk 0:00:50.4]} 35. Bxd5
{[%clk 0:00:57.7]} 35... b6 {[%clk 0:00:44.2]} 36. Bf3 {[%clk 0:00:36.1]} 36...
Rxh4 {[%clk 0:00:36.8]} 37. Kg3 {[%clk 0:00:36.2]} 37... g5 {[%clk 0:00:36.3]}
38. Re4 {[%clk 0:00:34.5]} 38... Rxe4 {[%clk 0:00:34.2]} 39. dxe4 {[%clk
0:00:31.5]} 39... Kg6 {[%clk 0:00:30.5]} 40. b3 {[%clk 0:00:31.2]} 40... Be5+
{[%clk 0:00:28.2]} 41. Kg2 {[%clk 0:00:30.5]} 41... g4 {[%clk 0:00:28.3]} 42.
Bd1 {[%clk 0:00:30.3]} 42... Kg5 {[%clk 0:00:28.7]} 43. Be2 {[%clk 0:00:28]}
43... a5 {[%clk 0:00:28.1]} 44. Bd3 {[%clk 0:00:28]} 44... Kf4 {[%clk
0:00:26.9]} 45. a4 {[%clk 0:00:26.8]} 45... h4 {[%clk 0:00:27]} 46. Bc4 {[%clk
0:00:24.4]} 46... h3+ {[%clk 0:00:26.4]} 47. Kf2 {[%clk 0:00:23.9]} 47... g3+
{[%clk 0:00:25.8]} 48. Kg1 {[%clk 0:00:24.2]} 48... Bd4+ {[%clk 0:00:24.6]} 49.
Kf1 {[%clk 0:00:23.3]} 49... g2+ {[%clk 0:00:24.9]} 0-1

[Event "Early-Titled-Tuesday-Blitz-October-24-2023"]
[Site "Chess.com"]
[Date "2023.10.24"]
[Round "8"]
[White "Orujov2008"]
[Black "jaskol95"]
[Result "1-0"]
[WhiteElo "2737"]
[BlackElo "2554"]
[TimeControl "180+1"]
[EndTime "9:25:20 PDT"]
[Termination "Orujov2008 won on time"]

1. e4 {[%clk 0:03:00.9]} 1... c5 {[%clk 0:02:57.4]} 2. Nf3 {[%clk 0:03:00.9]}
2... e6 {[%clk 0:02:58.1]} 3. d4 {[%clk 0:03:01.2]} 3... cxd4 {[%clk 0:02:59]}
4. Nxd4 {[%clk 0:03:01.5]} 4... Nc6 {[%clk 0:02:59.7]} 5. Nc3 {[%clk 0:03:00.6]}
5... Qc7 {[%clk 0:02:59.6]} 6. f4 {[%clk 0:03:00.9]} 6... a6 {[%clk 0:02:56.1]}
7. Nxc6 {[%clk 0:02:55.5]} 7... Qxc6 {[%clk 0:02:50]} 8. Bd3 {[%clk 0:02:53.4]}
8... Bc5 {[%clk 0:02:48.4]} 9. Bd2 {[%clk 0:02:48.2]} 9... b5 {[%clk 0:02:39.5]}
10. Qe2 {[%clk 0:02:48.2]} 10... Ne7 {[%clk 0:02:27.7]} 11. e5 {[%clk
0:02:44.8]} 11... Bb7 {[%clk 0:02:18.8]} 12. Be4 {[%clk 0:02:39.7]} 12... Qc7
{[%clk 0:02:18.1]} 13. Bxb7 {[%clk 0:02:40.6]} 13... Qxb7 {[%clk 0:02:18.5]} 14.
O-O-O {[%clk 0:02:38.7]} 14... O-O {[%clk 0:02:13.5]} 15. g4 {[%clk 0:02:35.7]}
15... d5 {[%clk 0:02:03.6]} 16. exd6 {[%clk 0:02:30.1]} 16... Bxd6 {[%clk
0:02:03.6]} 17. Ne4 {[%clk 0:02:31]} 17... Bc7 {[%clk 0:01:56.8]} 18. Kb1 {[%clk
0:02:23.8]} 18... Rac8 {[%clk 0:01:52.7]} 19. Bb4 {[%clk 0:02:20.3]} 19... Rfe8
{[%clk 0:01:41.5]} 20. Rhf1 {[%clk 0:02:15.2]} 20... Nd5 {[%clk 0:01:36.7]} 21.
Bd2 {[%clk 0:02:15.5]} 21... Qc6 {[%clk 0:01:32.2]} 22. g5 {[%clk 0:02:13.4]}
22... Bb6 {[%clk 0:01:19.5]} 23. Bc1 {[%clk 0:02:08]} 23... a5 {[%clk
0:01:02.6]} 24. h4 {[%clk 0:02:04.8]} 24... a4 {[%clk 0:01:02.9]} 25. h5 {[%clk
0:01:59.2]} 25... a3 {[%clk 0:01:02.5]} 26. h6 {[%clk 0:01:56.3]} 26... Qc4
{[%clk 0:00:48.9]} 27. Qg2 {[%clk 0:01:48.3]} 27... axb2 {[%clk 0:00:34.4]} 28.
Bxb2 {[%clk 0:01:49.2]} 28... Ne3 {[%clk 0:00:18.8]} 29. Bxg7 {[%clk 0:01:48.3]}
29... f5 {[%clk 0:00:03.7]} 30. Nf6+ {[%clk 0:01:48]} 30... Kf7 {[%clk
0:00:04.3]} 31. Nxe8 {[%clk 0:01:44.7]} 31... Qb4+ {[%clk 0:00:02.7]} 32. Bb2
{[%clk 0:01:41.5]} 32... Nxg2 {[%clk 0:00:02.5]} 33. Nd6+ {[%clk 0:01:38.6]}
33... Kg6 {[%clk 0:00:02.7]} 34. Nxc8 {[%clk 0:01:39.5]} 34... Ne3 {[%clk
0:00:03.2]} 35. Nxb6 {[%clk 0:01:33.8]} 35... Nxf1 {[%clk 0:00:03.1]} 36. Rxf1
{[%clk 0:01:34.7]} 36... Qc5 {[%clk 0:00:03.1]} 37. Nd7 {[%clk 0:01:30.3]} 37...
Qd5 {[%clk 0:00:03.6]} 38. Nf8+ {[%clk 0:01:20.9]} 38... Kh5 {[%clk 0:00:03.6]}
39. g6 {[%clk 0:01:21]} 39... Kxh6 {[%clk 0:00:02.3]} 40. g7 {[%clk 0:01:13.5]}
40... e5 {[%clk 0:00:01.9]} 41. Rg1 {[%clk 0:01:08.6]} 41... Qg8 {[%clk
0:00:01.5]} 42. fxe5 {[%clk 0:01:03]} 42... f4 {[%clk 0:00:01.5]} 43. e6 {[%clk
0:01:01.6]} 43... f3 {[%clk 0:00:02]} 44. e7 {[%clk 0:00:53.3]} 44... f2 {[%clk
0:00:01.9]} 45. Rf1 {[%clk 0:00:49.3]} 45... Qf7 {[%clk 0:00:01.6]} 46. g8=Q
{[%clk 0:00:43.1]} 46... Qxg8 {[%clk 0:00:01.9]} 47. e8=Q {[%clk 0:00:42.9]}
47... Qg1 {[%clk 0:00:02.8]} 48. Qe2 {[%clk 0:00:40.4]} 1-0